fUST/lending_fUST_20251205
["ID","MTS","AMOUNT","RATE_DAILY","PERIOD"]
[396245116,1764871832089,-200.0,0.00019512,2]
[396245117,1764871832098,-151.0,0.00019523,2]
[396245118,1764871832108,-151.0,0.00019523,2]
[396245119,1764871832117,-206.79718018,0.00019533,2]
[396245121,1764871832127,-231.0,0.00019547,2]
[396245123,1764871832135,-151.0,0.00019572,2]
[396245125,1764871832144,-151.0,0.00019572,2]
[396245127,1764871832154,-151.0,0.00019572,2]
[396245129,1764871832163,-151.0,0.00019572,2]
[396245131,1764871832173,-151.0,0.0001966,2]
[396245133,1764871832183,-152.05336779,0.0001966,2]
[396245135,1764871832193,-198.0,0.00019709,2]
[396245137,1764871832202,-198.0,0.00019709,2]
[396245138,1764871832212,-198.0,0.00019709,2]
[396245140,1764871832221,-198.0,0.00019709,2]
[396245142,1764871832231,-317.33364849,0.00019725,2]
[396245144,1764871832240,-500.0,0.00019725,2]
[396245146,1764871832250,-500.0,0.00019725,2]
[396245147,1764871832259,-442.42211489,0.00019725,2]
[396245148,1764871832268,-500.0,0.00019725,2]
[396245149,1764871832278,-500.0,0.00019725,2]
[396245150,1764871832287,-500.0,0.00019725,2]
[396245151,1764871832299,-500.0,0.00019725,2]
[396245152,1764871832308,-500.0,0.00019725,2]
[396245153,1764871832318,-1641.02239513,0.00019725,2]
[396245154,1764871832327,-1641.02239513,0.00019725,2]
[396245155,1764871832337,-1641.02239513,0.00019725,2]
[396245156,1764871832347,-1641.02239513,0.00019725,2]
[396245157,1764871832360,-1641.02239513,0.00019725,2]
[396245158,1764871832369,-1641.02239513,0.00019725,2]
[396245159,1764871832379,-1641.02239513,0.00019725,2]
[396245161,1764871832387,-1641.02239513,0.00019725,2]
[396245162,1764871832398,-1641.02239513,0.00019725,2]
[396245163,1764871832407,-1641.02239513,0.00019725,2]
[396245164,1764871832417,-1641.02239513,0.00019725,2]
[396245165,1764871832429,-1641.02239513,0.00019725,2]
[396245166,1764871832438,-1641.02239513,0.00019725,2]
[396245167,1764871832448,-1641.02239513,0.00019725,2]
[396245169,1764871832457,-1641.02239513,0.00019725,2]
[396245171,1764871832467,-1641.02239513,0.00019725,2]
[396245173,1764871832476,-1641.02239513,0.00019725,2]
[396245174,1764871832486,-1641.02239513,0.00019725,2]
[396245176,1764871832495,-1641.02239513,0.00019725,2]
[396245177,1764871832504,-1641.02239513,0.00019725,2]
[396245178,1764871832513,-1641.02239513,0.00019725,2]
[396245180,1764871832523,-1641.02239513,0.00019725,2]
[396245182,1764871832533,-1641.02239513,0.00019725,2]
[396245183,1764871832542,-1641.02239513,0.00019725,2]
[396245184,1764871832554,-1641.02239513,0.00019725,2]
[396245185,1764871832563,-1641.02239513,0.00019725,2]
[396245186,1764871832572,-1641.02239513,0.00019725,2]
[396245187,1764871832582,-1641.02239513,0.00019725,2]
[396245188,1764871832592,-1641.02239513,0.00019725,2]
[396245189,1764871832605,-1641.02239513,0.00019725,2]
[396245190,1764871832615,-1641.02239513,0.00019725,2]
[396245191,1764871832625,-337.31758032,0.00019725,2]
[396245192,1764871832638,-1303.70481481,0.00019725,2]
[396245193,1764871832647,-1641.02239513,0.00019725,2]
[396245194,1764871832656,-1641.02239513,0.00019725,2]
[396245195,1764871832666,-1090.18642759,0.00019725,2]
[396245196,1764871832678,-550.83596754,0.00019725,2]
[396245197,1764871832687,-325.06307832,0.00019725,2]
[396245198,1764871832703,-1315.95931681,0.00019725,2]
[396245199,1764871832712,-548.51704431,0.00019725,2]
[396245200,1764871832723,-538.9569974,0.00019725,2]
[396245204,1764871837818,-500.0,0.00019724,2]
[396245205,1764871837828,-420.0098551,0.00019724,2]
[396245206,1764871837839,-79.9901449,0.00019724,2]
[396245207,1764871837848,-500.0,0.00019724,2]
[396245208,1764871837858,-45.59090517,0.00019724,2]
[396245212,1764871839989,-505.8643902,0.00016705,2]
[396245213,1764871839999,-454.40909483,0.00019724,2]
[396245214,1764871840010,-409.69548043,0.00019724,2]
[396245215,1764871840019,-958.14898391,0.00019724,2]
[396245216,1764871840029,-958.14898391,0.00019724,2]
[396245217,1764871840039,-958.14898391,0.00019724,2]
[396245218,1764871840048,-958.14898391,0.00019724,2]
[396245219,1764871840058,-958.14898391,0.00019724,2]
[396245220,1764871840068,-958.14898391,0.00019724,2]
[396245221,1764871840077,-958.14898391,0.00019724,2]
[396245222,1764871840086,-958.14898391,0.00019724,2]
[396245223,1764871840095,-958.14898391,0.00019724,2]
[396245224,1764871840105,-958.14898391,0.00019724,2]
[396245225,1764871840115,-958.14898391,0.00019724,2]
[396245226,1764871840123,-958.14898391,0.00019724,2]
[396245228,1764871840133,-958.14898391,0.00019724,2]
[396245230,1764871840142,-958.14898391,0.00019724,2]
[396245232,1764871840151,-958.14898391,0.00019724,2]
[396245233,1764871840161,-958.14898391,0.00019724,2]
[396245234,1764871840172,-958.14898391,0.00019724,2]
[396245235,1764871840183,-958.14898391,0.00019724,2]
[396245236,1764871840193,-958.14898391,0.00019724,2]
[396245237,1764871840203,-958.14898391,0.00019724,2]
[396245238,1764871840213,-958.14898391,0.00019724,2]
[396245239,1764871840222,-958.14898391,0.00019724,2]
[396245240,1764871840232,-958.14898391,0.00019724,2]
[396245241,1764871840243,-958.14898391,0.00019724,2]
[396245242,1764871840254,-958.14898391,0.00019724,2]
[396245243,1764871840264,-958.14898391,0.00019724,2]
[396245244,1764871840274,-958.14898391,0.00019724,2]
[396245245,1764871840283,-958.14898391,0.00019724,2]
[396245246,1764871840292,-958.14898391,0.00019724,2]
[396245247,1764871840302,-958.14898391,0.00019724,2]
[396245248,1764871840311,-478.46589727,0.00019724,2]
[396245249,1764871840323,-479.68308664,0.00019724,2]
[396245250,1764871840331,-192.09628171,0.00019724,2]
[396245251,1764871840343,-766.0527022,0.00019724,2]
[396245252,1764871840355,-439.44583827,0.00019724,2]
[396245253,1764871840484,-0.01281932,0.00019724,2]
[396245254,1764871840764,-518.69032632,0.00019724,2]
[396245255,1764871840773,-958.14898391,0.00019724,2]
[396245256,1764871840783,-958.14898391,0.00019724,2]
[396245257,1764871840793,-958.14898391,0.00019724,2]
[396245258,1764871840803,-958.14898391,0.00019724,2]
[396245259,1764871840812,-958.14898391,0.00019724,2]
[396245260,1764871840823,-958.14898391,0.00019724,2]
[396245261,1764871840832,-958.14898391,0.00019724,2]
[396245262,1764871840842,-958.14898391,0.00019724,2]
[396245263,1764871840852,-958.14898391,0.00019724,2]
[396245264,1764871840862,-958.14898391,0.00019724,2]
[396245265,1764871840871,-958.14898391,0.00019724,2]
[396245266,1764871840881,-958.14898391,0.00019724,2]
[396245267,1764871840890,-958.14898391,0.00019724,2]
[396245268,1764871840899,-411.05231202,0.00019724,2]
[396245269,1764871840910,-547.09667189,0.00019724,2]
[396245270,1764871840920,-958.14898391,0.00019724,2]
[396245271,1764871840929,-958.14898391,0.00019724,2]
[396245272,1764871840938,-958.14898391,0.00019724,2]
[396245273,1764871840947,-958.14898391,0.00019724,2]
[396245274,1764871840956,-958.14898391,0.00019724,2]
[396245275,1764871840966,-280.99552549,0.00019724,2]
[396245287,1764871843096,-414.0,0.00018794,2]
[396245289,1764871843106,-677.15345842,0.00019724,2]
[396245291,1764871843115,-958.14898391,0.00019724,2]
[396245293,1764871843124,-958.14898391,0.00019724,2]
[396245295,1764871843134,-958.14898391,0.00019724,2]
[396245297,1764871843143,-958.14898391,0.00019724,2]
[396245299,1764871843152,-958.14898391,0.00019724,2]
[396245301,1764871843161,-572.13355395,0.00019724,2]
[396245303,1764871843171,-958.14898391,0.00019724,2]
[396245305,1764871843180,-151.0,0.00019725,2]
[396245307,1764871843189,-151.0,0.00019725,2]
[396245309,1764871843199,-151.0,0.00019725,2]
[396245311,1764871843208,-151.0,0.00019725,2]
[396245313,1764871843218,-151.0,0.00019725,2]
[396245315,1764871843227,-151.0,0.00019725,2]
[396245317,1764871843237,-151.0,0.00019725,2]
[396245319,1764871843246,-151.0,0.00019725,2]
[396245321,1764871843255,-151.0,0.00019725,2]
[396245324,1764871843264,-151.0,0.00019725,2]
[396245326,1764871843273,-374.005635,0.00019725,2]
[396245328,1764871843283,-374.005635,0.00019725,2]
[396245330,1764871843293,-151.0,0.00019725,2]
[396245332,1764871843302,-151.0,0.00019725,2]
[396245334,1764871843311,-374.005635,0.00019725,2]
[396245336,1764871843320,-374.005635,0.00019725,2]
[396245338,1764871843330,-12359.79654417,0.00019726,2]
[396245391,1764871845853,-374.005635,0.00019725,2]
[396245392,1764871845862,-374.005635,0.00019725,2]
[396245393,1764871845872,-75.71000738,0.00019725,2]
[396245394,1764871845905,-298.29562762,0.00019725,2]
[396245395,1764871845915,-374.005635,0.00019725,2]
[396245396,1764871845924,-20015.8962359,0.00019726,2]
[396245405,1764872433573,-226.154663,0.00013008,2]
[396245406,1764872433596,-126.08120751,0.00013008,2]
[396245407,1764872436302,-130.91879249,0.00013008,2]
[396245408,1764872436325,-150.0,0.00013074,2]
[396245409,1764872436346,-49.94600451,0.00013139,2]
[396245410,1764872582976,-170.02203301,0.00013008,2]
[396245411,1764872589270,170.02203301,0.00012877,2]
[396245423,1764872688648,-505.0,0.00013008,2]
[396245424,1764872703824,1141.56352986,0.00012877,2]
[396245425,1764872801119,-300.0,0.00013272,2]
[396245426,1764872801139,-104.05667186,0.00013272,2]
[396245427,1764872849086,-195.94332814,0.00013272,2]
[396245428,1764872849107,-300.0,0.00013272,2]
[396245429,1764872849126,-29.26048933,0.00013272,2]
[396245431,1764872955095,-1170.73951067,0.00013272,2]
[396245432,1764872955117,-300.0,0.00013272,2]
[396245433,1764872955143,-150.0,0.00013272,2]
[396245434,1764872955163,-170.38720075,0.00013273,2]
[396245435,1764872955183,-500.5105001,0.00013273,2]
[396245436,1764872955202,-613.17548783,0.00013273,2]
[396245437,1764872955223,-224.58498768,0.00013273,2]
[396245438,1764872955247,-500.66209254,0.00013273,2]
[396245439,1764872955267,-507.17795087,0.00013273,2]
[396245440,1764872955287,-500.39540582,0.00013273,2]
[396245441,1764872955307,-167.48109854,0.00013273,2]
[396245442,1764872955325,-500.0,0.00013273,2]
[396245443,1764872955346,-500.64354125,0.00013273,2]
[396245444,1764872955370,-500.0,0.00013273,2]
[396245445,1764872955390,-500.0,0.00013273,2]
[396245446,1764872955410,-500.0,0.00013273,2]
[396245447,1764872955429,-500.0,0.00013273,2]
[396245448,1764872955449,-491.08034357,0.00013273,2]
[396245449,1764872955468,-500.0,0.00013273,2]
[396245450,1764872955488,-500.0,0.00013273,2]
[396245451,1764872955508,-500.0,0.00013273,2]
[396245452,1764872955528,-500.0,0.00013273,2]
[396245453,1764872955547,-500.0,0.00013273,2]
[396245454,1764872955565,-517.25408591,0.00013273,2]
[396245455,1764872955584,-501.80619956,0.00013273,2]
[396245456,1764872955604,-501.59462568,0.00013273,2]
[396245457,1764872955622,-170.44097734,0.00013673,2]
[396245481,1764873031915,-501.21234289,0.00013273,2]
[396245482,1764873031924,-523.758167,0.00013699,2]
[396245483,1764873031933,-263.0,0.00013699,2]
[396245484,1764873031942,-177.0,0.00015272,2]
[396245485,1764873031952,-170.05515115,0.0001641,2]
[396245486,1764873031962,-500.0,0.00016705,2]
[396245487,1764873031971,-399.12955785,0.00016705,2]
[396245488,1764873031980,-249.03100605,0.00016802,3]
[396245489,1764873031989,-3839.0564559,0.00016974,2]
[396245490,1764873031998,-343.51575326,0.00017003,2]
[396245491,1764873032007,-600.0,0.00017038,2]
[396245492,1764873032016,-204.0,0.00017272,2]
[396245493,1764873032025,-323.37495246,0.00017897,2]
[396245494,1764873032034,-201.93286099,0.0001816,2]
[396245495,1764873032042,-185.87509031,0.00018192,2]
[396245496,1764873032052,-369.92594088,0.00018463,3]
[396245497,1764873032061,-720.0,0.00018742,10]
[396245498,1764873032070,-150.0,0.00019178,2]
[396245499,1764873032078,-231.0,0.00019272,2]
[396245500,1764873032087,-414.0,0.00019384,2]
[396245501,1764873032096,-212.39777916,0.00019516,2]
[396245502,1764873032106,-224.20643302,0.00019607,2]
[396245503,1764873032115,-174.61919139,0.00019607,2]
[396245504,1764873032125,-250.0,0.00019607,2]
[396245505,1764873032134,-244.62755413,0.00019607,2]
[396245506,1764873032143,-500.0,0.00019607,2]
[396245507,1764873032152,-200.0,0.00019607,2]
[396245508,1764873032162,-500.0,0.00019607,2]
[396245509,1764873032171,-500.0,0.00019607,2]
[396245510,1764873032180,-500.0,0.00019607,2]
[396245511,1764873032189,-500.0,0.00019607,2]
[396245512,1764873032199,-500.0,0.00019607,2]
[396245513,1764873032208,-500.0,0.00019607,2]
[396245514,1764873032217,-500.0,0.00019607,2]
[396245515,1764873032226,-500.0,0.00019607,2]
[396245516,1764873032235,-500.0,0.00019607,2]
[396245517,1764873032245,-500.0,0.00019607,2]
[396245518,1764873032254,-500.0,0.00019607,2]
[396245519,1764873032263,-500.0,0.00019607,2]
[396245520,1764873032272,-377.57013578,0.00019607,2]
[396245521,1764873032312,-122.42986422,0.00019607,2]
[396245522,1764873032323,-500.00000003,0.00019607,2]
[396245523,1764873032332,-500.0,0.00019607,2]
[396245524,1764873032342,-1000.0,0.00019607,2]
[396245525,1764873032351,-500.0,0.00019607,2]
[396245526,1764873032360,-1000.0,0.00019607,2]
[396245527,1764873032369,-500.0,0.00019607,2]
[396245528,1764873032378,-1000.0,0.00019607,2]
[396245529,1764873032387,-500.0,0.00019607,2]
[396245530,1764873032396,-500.0,0.00019607,2]
[396245531,1764873032408,-500.0,0.00019607,2]
[396245532,1764873032418,-500.0,0.00019616,2]
[396245533,1764873032427,-500.0,0.00019616,2]
[396245534,1764873032437,-500.0,0.00019616,2]
[396245535,1764873032446,-500.0,0.00019616,2]
[396245536,1764873032746,-500.0,0.00019616,2]
[396245537,1764873032756,-500.0,0.00019616,2]
[396245538,1764873032765,-500.0,0.00019616,2]
[396245539,1764873032776,-500.0,0.00019616,2]
[396245541,1764873032786,-500.0,0.00019616,2]
[396245543,1764873032796,-500.0,0.00019616,2]
[396245545,1764873032806,-500.0,0.00019616,2]
[396245547,1764873032815,-500.0,0.00019616,2]
[396245549,1764873032825,-500.0,0.00019616,2]
[396245551,1764873032834,-500.0,0.00019616,2]
[396245553,1764873032844,-472.66658404,0.00019616,2]
[396245554,1764873032854,-254.20263923,0.00019616,2]
[396245555,1764873032864,-157.6138389,0.00019616,2]
[396245556,1764873032873,-500.0,0.00019616,2]
[396245558,1764873032883,-500.0,0.00019616,2]
[396245560,1764873032893,-500.0,0.00019616,2]
[396245561,1764873032902,-500.0,0.00019616,2]
[396245562,1764873032912,-500.0,0.00019616,2]
[396245563,1764873032921,-500.0,0.00019616,2]
[396245564,1764873032930,-81.60867362,0.00019616,2]
[396245572,1764873038041,-317.0,0.00019564,2]
[396245573,1764873038052,-3806.40179376,0.00019564,2]
[396245574,1764873038063,-418.39132638,0.00019616,2]
[396245575,1764873038078,-75.27016188,0.00019616,2]
[396245576,1764873038099,-340.33332483,0.00019616,2]
[396245577,1764873038152,-84.39651329,0.00019616,2]
[396245578,1764873038163,-500.0,0.00019616,2]
[396245579,1764873038173,-500.0,0.00019616,2]
[396245581,1764873038183,-759.31823969,0.00019616,2]
[396245583,1764873038193,-500.0,0.00019616,2]
[396245584,1764873038203,-759.31823969,0.00019616,2]
[396245585,1764873038212,-500.0,0.00019616,2]
[396245586,1764873038221,-500.0,0.00019616,2]
[396245587,1764873038232,-759.31823969,0.00019616,2]
[396245588,1764873038243,-500.0,0.00019616,2]
[396245589,1764873038253,-500.0,0.00019616,2]
[396245590,1764873038264,-759.31823969,0.00019616,2]
[396245591,1764873038273,-500.0,0.00019616,2]
[396245592,1764873038283,-500.0,0.00019616,2]
[396245593,1764873038292,-759.31823969,0.00019616,2]
[396245594,1764873038302,-450.0,0.00019616,2]
[396245595,1764873038312,-500.0,0.00019616,2]
[396245596,1764873038322,-759.31823969,0.00019616,2]
[396245597,1764873038332,-500.0,0.00019616,2]
[396245598,1764873038341,-759.31823969,0.00019616,2]
[396245599,1764873038351,-500.0,0.00019616,2]
[396245600,1764873038361,-500.0,0.00019616,2]
[396245601,1764873038372,-759.31823969,0.00019616,2]
[396245602,1764873038383,-500.0,0.00019616,2]
[396245603,1764873038393,-759.31823969,0.00019616,2]
[396245604,1764873038403,-500.0,0.00019616,2]
[396245605,1764873038412,-759.31823969,0.00019616,2]
[396245606,1764873038422,-355.24511948,0.00019616,2]
[396245616,1764873040078,-144.75488052,0.00019616,2]
[396245617,1764873040088,-759.31823969,0.00019616,2]
[396245618,1764873040098,-235.12653929,0.00019616,2]
[396245619,1764873040109,-264.87346071,0.00019616,2]
[396245621,1764873040119,-39.25353929,0.00019616,2]
[396245623,1764873040131,-720.0647004,0.00019616,2]
[396245624,1764873040140,-399.44071967,0.00019616,2]
[396245627,1764873040155,-100.55928033,0.00019616,2]
[396245629,1764873040164,-759.31823969,0.00019616,2]
[396245631,1764873040174,-500.0,0.00019616,2]
[396245633,1764873040184,-759.31823969,0.00019616,2]
[396245635,1764873040194,-759.31823969,0.00019616,2]
[396245637,1764873040203,-500.0,0.00019616,2]
[396245639,1764873040213,-759.31823969,0.00019616,2]
[396245642,1764873040222,-500.0,0.00019616,2]
[396245645,1764873040231,-759.31823969,0.00019616,2]
[396245648,1764873040241,-500.0,0.00019616,2]
[396245650,1764873040250,-759.31823969,0.00019616,2]
[396245652,1764873040259,-500.0,0.00019616,2]
[396245654,1764873040269,-759.31823969,0.00019616,2]
[396245656,1764873040278,-632.86355579,0.00019616,2]
[396245658,1764873040288,-759.31823969,0.00019616,2]
[396245659,1764873040298,-500.0,0.00019616,2]
[396245661,1764873040307,-759.31823969,0.00019616,2]
[396245664,1764873040318,-759.31823969,0.00019616,2]
[396245666,1764873040327,-500.0,0.00019616,2]
[396245668,1764873040336,-759.31823969,0.00019616,2]
[396245670,1764873040346,-759.31823969,0.00019616,2]
[396245672,1764873040356,-759.31823969,0.00019616,2]
[396245674,1764873040366,-759.31823969,0.00019616,2]
[396245676,1764873040376,-500.0,0.00019616,2]
[396245678,1764873040386,-759.31823969,0.00019616,2]
[396245680,1764873040396,-759.31823969,0.00019616,2]
[396245682,1764873040405,-759.31823969,0.00019616,2]
[396245684,1764873040415,-759.31823969,0.00019616,2]
[396245686,1764873040424,-759.31823969,0.00019616,2]
[396245688,1764873040434,-759.31823969,0.00019616,2]
[396245690,1764873040444,-759.31823969,0.00019616,2]
[396245692,1764873040453,-759.31823969,0.00019616,2]
[396245694,1764873040463,-759.31823969,0.00019616,2]
[396245696,1764873040472,-759.31823969,0.00019616,2]
[396245698,1764873040481,-759.31823969,0.00019616,2]
[396245700,1764873040491,-759.31823969,0.00019616,2]
[396245702,1764873040501,-759.31823969,0.00019616,2]
[396245704,1764873040510,-759.31823969,0.00019616,2]
[396245706,1764873040519,-759.31823969,0.00019616,2]
[396245708,1764873040528,-759.31823969,0.00019616,2]
[396245710,1764873040538,-759.31823969,0.00019616,2]
[396245712,1764873040547,-759.31823969,0.00019616,2]
[396245714,1764873040556,-759.31823969,0.00019616,2]
[396245716,1764873040567,-759.31823969,0.00019616,2]
[396245718,1764873040576,-759.31823969,0.00019616,2]
[396245720,1764873040585,-759.31823969,0.00019616,2]
[396245722,1764873040594,-759.31823969,0.00019616,2]
[396245724,1764873040607,-759.31823969,0.00019616,2]
[396245726,1764873040616,-759.31823969,0.00019616,2]
[396245728,1764873040626,-759.31823969,0.00019616,2]
[396245730,1764873040635,-759.31823969,0.00019616,2]
[396245732,1764873040644,-759.31823969,0.00019616,2]
[396245734,1764873040654,-754.25611809,0.00019616,2]
[396245736,1764873040663,-754.25611809,0.00019616,2]
[396245738,1764873040673,-499.99999999,0.00019616,2]
[396245741,1764873040683,-754.25611809,0.00019616,2]
[396245742,1764873040692,-754.25611809,0.00019616,2]
[396245744,1764873040702,-754.25611809,0.00019616,2]
[396245746,1764873040712,-754.25611809,0.00019616,2]
[396245748,1764873040721,-754.25611809,0.00019616,2]
[396245750,1764873040732,-754.25611809,0.00019616,2]
[396245752,1764873040742,-754.25611809,0.00019616,2]
[396245755,1764873040752,-754.25611809,0.00019616,2]
[396245757,1764873040763,-754.25611809,0.00019616,2]
[396245760,1764873040780,-754.25611809,0.00019616,2]
[396245762,1764873040795,-754.25611809,0.00019616,2]
[396245765,1764873040811,-754.25611809,0.00019616,2]
[396245767,1764873040823,-754.25611809,0.00019616,2]
[396245769,1764873040837,-754.25611809,0.00019616,2]
[396245772,1764873040850,-754.25611809,0.00019616,2]
[396245774,1764873040864,-754.25611809,0.00019616,2]
[396245777,1764873040879,-754.25611809,0.00019616,2]
[396245779,1764873040893,-754.25611809,0.00019616,2]
[396245782,1764873040909,-754.25611809,0.00019616,2]
[396245784,1764873040923,-754.25611809,0.00019616,2]
[396245787,1764873040936,-754.25611809,0.00019616,2]
[396245789,1764873040949,-754.25611809,0.00019616,2]
[396245792,1764873040962,-754.25611809,0.00019616,2]
[396245794,1764873040977,-754.25611809,0.00019616,2]
[396245797,1764873040989,-754.25611809,0.00019616,2]
[396245799,1764873041003,-754.25611809,0.00019616,2]
[396245801,1764873041013,-754.25611806,0.00019616,2]
[396245803,1764873041026,-754.25611806,0.00019616,2]
[396245806,1764873041038,-516.09495146,0.00019617,2]
[396245808,1764873041052,-400.49348776,0.00019618,2]
[396245810,1764873041065,-500.0,0.00019618,2]
[396245813,1764873041079,-500.0,0.00019618,2]
[396245815,1764873041093,-500.0,0.00019618,2]
[396245818,1764873041111,-336.7868363,0.00019618,2]
[396245820,1764873041122,-500.0,0.00019619,2]
[396245822,1764873041133,-10994.15227878,0.00019619,2]
[396245833,1764873043179,-1318.70184405,0.00019619,2]
[396245834,1764873043193,-38605.2292416,0.00019619,2]
[396245835,1764873043229,-10313.11202671,0.00019619,2]
[396245837,1764873043341,-365.52703439,0.00019619,2]
[396245839,1764873043354,-3040.92075901,0.00019619,2]
[396245843,1764873046634,-702.23462972,0.00019619,2]
[396245844,1764873046646,-2583.70658444,0.00019619,2]
[396245845,1764873046658,-25826.29,0.00019619,2]
[396245846,1764873046669,-6929.59063587,0.00019619,2]
[396245848,1764873072538,1010.0,0.00012877,2]
[396245981,1764873439903,598.845337,0.00012877,2]
[396245982,1764873480624,252.91,0.00012008,2]
[396245983,1764873615322,917.63100456,0.00012877,2]
[396245984,1764873623359,939.78866514,0.00012877,2]
[396245985,1764873782754,152.49,1e-05,2]
[396245986,1764873782887,152.49,1.3e-05,2]
[396245987,1764873783276,152.49,1.6e-05,2]
[396245988,1764873783583,152.49,2e-05,2]
[396245989,1764873783861,152.49,2.3e-05,2]
[396245990,1764873784158,-257.0,0.00013009,2]
[396245991,1764873784188,43.0,2.6e-05,2]
[396245992,1764873784217,109.49,2.6e-05,2]
[396245993,1764873784559,152.49,2.9e-05,2]
[396245994,1764873784879,152.49,3.3e-05,2]
[396245995,1764873787178,152.49,3.6e-05,2]
[396245996,1764873787592,152.49,3.9e-05,2]
[396245997,1764873787880,152.49,4.2e-05,2]
[396245998,1764873788160,152.49,4.6e-05,2]
[396245999,1764873788441,152.49,4.9e-05,2]
[396246000,1764873788988,152.49,5.2e-05,2]
[396246001,1764873789026,152.49,5.5e-05,2]
[396246002,1764873789317,152.49,5.9e-05,2]
[396246003,1764873789619,152.49,6.2e-05,2]
[396246004,1764873790034,152.49,6.5e-05,2]
[396246005,1764873790341,152.49,6.8e-05,2]
[396246006,1764873790640,152.49,7.2e-05,2]
[396246007,1764873790915,152.49,7.5e-05,2]
[396246008,1764873791213,152.49,7.8e-05,2]
[396246009,1764873791485,152.49,8.1e-05,2]
[396246010,1764873791869,152.49,8.5e-05,2]
[396246011,1764873792153,152.49,8.8e-05,2]
[396246012,1764873792496,152.49,9.1e-05,2]
[396246013,1764873793212,152.49,9.4e-05,2]
[396246014,1764873794043,152.44,1e-05,2]
[396246015,1764873829884,-213.2633218,0.00013009,2]
[396246016,1764873834474,-152.72053393,0.00013009,2]
[396246019,1764873870961,-1233.13012716,0.00013009,2]
[396246020,1764873906257,-150.0,0.0001314,2]
[396246021,1764873906291,-1200.0,0.00013271,2]
[396246022,1764873906327,-1200.0,0.00013271,2]
[396246023,1764873906362,-300.0,0.00013272,2]
[396246024,1764873906400,-300.0,0.00013272,2]
[396246036,1764873951193,164.4949911,8.515e-05,2]
[396246037,1764873958296,-500.0,0.00013273,2]
[396246038,1764873958633,-500.0,0.00013273,2]
[396246039,1764873958666,-287.94518306,0.00013273,2]
[396246040,1764873958697,-510.65583519,0.00013273,2]
[396246041,1764873958731,-500.0,0.00013273,2]
[396246042,1764873958765,-386.82451217,0.00013273,2]
[396246043,1764873958796,-457.00457085,0.00013273,2]
[396246044,1764873958831,-500.85589853,0.00013273,2]
[396246045,1764873958863,-500.4168942,0.00013273,2]
[396246046,1764873958895,-304.65756777,0.00013273,2]
[396246047,1764873963317,300.0,0.00013272,2]
[396246048,1764873979859,-222.2729613,0.00013273,2]
[396246049,1764873979891,-500.66460598,0.00013273,2]
[396246050,1764873979923,-229.32354555,0.00013273,2]
[396246051,1764873979956,-500.52528372,0.00013273,2]
[396246052,1764873979989,-501.53923172,0.00013273,2]
[396246053,1764873980022,-491.34874346,0.00013273,2]
[396246054,1764874006990,18235.5050089,0.0001327,2]
[396246055,1764874028101,-281.89059822,0.0001327,2]
[396246056,1764874097841,-16620.52574224,0.0001327,2]
[396246057,1764874122452,-8000.0,0.0001327,2]
[396246058,1764874146095,-451.07865065,0.0001327,2]
[396246059,1764874146116,-8.65125654,0.00013273,2]
[396246060,1764874146135,-500.0,0.00013273,2]
[396246061,1764874146154,-500.0,0.00013273,2]
[396246062,1764874146175,-500.0,0.00013273,2]
[396246063,1764874146195,-500.0,0.00013273,2]
[396246064,1764874146214,-501.27900636,0.00013273,2]
[396246065,1764874146232,-500.92270154,0.00013273,2]
[396246066,1764874146252,-150.0,0.00013486,2]
[396246067,1764874146270,-500.6537172,0.00013699,2]
[396246068,1764874146289,-157.72801628,0.00013699,2]
[396246069,1764874146308,-504.43007054,0.00013699,2]
[396246070,1764874146327,-501.00123382,0.00013699,2]
[396246071,1764874146347,-519.46905192,0.00013699,2]
[396246072,1764874146366,-500.53559765,0.00013699,2]
[396246073,1764874146389,-501.84820566,0.00013699,2]